[Event "Titled Tuesday Blitz April 25 Late 2023"]
[White "Djokic, Mihailo"]
[Black "Skibbe, Willi"]
[WhiteFideId "976440"]
[BlackFideId "4682190"]
[WhiteElo "2294"]
[BlackElo "2176"]
[Result "1-0"]
[Round "03"]
[TimeControl "180+2"]
[Date "2023.04.25"]
[WhiteClock "0:01:56"]
[BlackClock "0:01:28"]

1. e4 {[%clk 0:03:00]}  e6 {[%clk 0:02:59]} 2. d4 {[%clk 0:02:58]}  d5 {[%clk 0:02:59]} 3. Nc3 {[%clk 0:02:53]}  Nf6 {[%clk 0:02:58]} 4. Bg5 {[%clk 0:02:53]}  dxe4 {[%clk 0:02:57]} 5. Nxe4 {[%clk 0:02:49]}  Nbd7 {[%clk 0:02:56]} 6. Nxf6+ {[%clk 0:02:48]}  Nxf6 {[%clk 0:02:56]} 7. Nf3 {[%clk 0:02:46]}  h6 {[%clk 0:02:56]} 8. Bh4 {[%clk 0:02:45]}  c5 {[%clk 0:02:52]} 9. dxc5 {[%clk 0:02:44]}  Qxd1+ {[%clk 0:02:36]} 10. Rxd1 {[%clk 0:02:45]}  Bxc5 {[%clk 0:02:35]} 11. Bb5+ {[%clk 0:02:37]}  Bd7 {[%clk 0:02:32]} 12. Rxd7 {[%clk 0:02:26]}  Nxd7 {[%clk 0:02:10]} 13. Ne5 {[%clk 0:02:20]}  f6 {[%clk 0:01:49]} 14. Nxd7 {[%clk 0:02:15]}  O-O-O {[%clk 0:01:35]} 15. Nxc5 {[%clk 0:02:12]}  Rd5 {[%clk 0:01:35]} 16. b4 {[%clk 0:02:10]}  a6 {[%clk 0:01:30]} 17. Bc4 {[%clk 0:02:09]}  Rd4 {[%clk 0:01:28]} 18. Bxe6+ {[%clk 0:02:03]}  Kc7 {[%clk 0:01:29]} 19. Bg3+ {[%clk 0:02:02]}  Kb6 {[%clk 0:01:28]} 20. c3 {[%clk 0:01:56]} 1-0


[Site "https://www.chess.com"]

[Event "Titled Tuesday Blitz April 25 Late 2023"]
[White "Kepeshchuk, Mykhaylo"]
[Black "Gupta, Abhijeet"]
[WhiteFideId "14113139"]
[BlackFideId "5010608"]
[WhiteElo "2279"]
[BlackElo "2528"]
[Result "0-1"]
[Round "03"]
[TimeControl "180+2"]
[Date "2023.04.25"]
[WhiteClock "0:00:02"]
[BlackClock "0:00:17"]

1. d4 {[%clk 0:02:51]}  Nf6 {[%clk 0:02:58]} 2. c4 {[%clk 0:02:51]}  Nc6 {[%clk 0:02:58]} 3. Nf3 {[%clk 0:02:48]}  e6 {[%clk 0:02:58]} 4. g3 {[%clk 0:02:48]}  Bb4+ {[%clk 0:02:57]} 5. Nbd2 {[%clk 0:02:47]}  d5 {[%clk 0:02:55]} 6. Qc2 {[%clk 0:02:33]}  dxc4 {[%clk 0:02:49]} 7. Qxc4 {[%clk 0:02:33]}  Qd5 {[%clk 0:02:49]} 8. Qxd5 {[%clk 0:02:21]}  exd5 {[%clk 0:02:49]} 9. a3 {[%clk 0:02:19]}  Ba5 {[%clk 0:02:43]} 10. Bg2 {[%clk 0:02:12]}  Ne4 {[%clk 0:02:36]} 11. b4 {[%clk 0:02:12]}  Bb6 {[%clk 0:02:35]} 12. e3 {[%clk 0:02:02]}  f5 {[%clk 0:02:27]} 13. Bb2 {[%clk 0:01:50]}  Be6 {[%clk 0:02:27]} 14. O-O {[%clk 0:01:32]}  Nd8 {[%clk 0:02:22]} 15. Nxe4 {[%clk 0:01:27]}  fxe4 {[%clk 0:02:22]} 16. Ng5 {[%clk 0:01:27]}  Bg4 {[%clk 0:02:14]} 17. f3 {[%clk 0:01:22]}  exf3 {[%clk 0:02:14]} 18. Nxf3 {[%clk 0:01:21]}  Nf7 {[%clk 0:02:05]} 19. b5 {[%clk 0:01:05]}  O-O {[%clk 0:02:03]} 20. a4 {[%clk 0:01:04]}  a5 {[%clk 0:02:02]} 21. h3 {[%clk 0:00:56]}  Be6 {[%clk 0:02:00]} 22. Rac1 {[%clk 0:00:48]}  Rfe8 {[%clk 0:01:59]} 23. Ba3 {[%clk 0:00:34]}  Rad8 {[%clk 0:01:59]} 24. Rc3 {[%clk 0:00:33]}  h6 {[%clk 0:01:54]} 25. Rfc1 {[%clk 0:00:31]}  Bf5 {[%clk 0:01:54]} 26. Bc5 {[%clk 0:00:25]}  Be4 {[%clk 0:01:35]} 27. Bxb6 {[%clk 0:00:23]}  cxb6 {[%clk 0:01:35]} 28. Nd2 {[%clk 0:00:17]}  Bxg2 {[%clk 0:01:34]} 29. Kxg2 {[%clk 0:00:18]}  Nd6 {[%clk 0:01:34]} 30. Kf2 {[%clk 0:00:16]}  Re6 {[%clk 0:01:21]} 31. g4 {[%clk 0:00:15]}  h5 {[%clk 0:01:12]} 32. Ke2 {[%clk 0:00:14]}  hxg4 {[%clk 0:01:11]} 33. hxg4 {[%clk 0:00:15]}  Rde8 {[%clk 0:01:10]} 34. Rf1 {[%clk 0:00:14]}  Rh6 {[%clk 0:01:07]} 35. Rf2 {[%clk 0:00:13]}  Rh4 {[%clk 0:01:07]} 36. Nf3 {[%clk 0:00:12]}  Rxg4 {[%clk 0:00:53]} 37. Ne5 {[%clk 0:00:13]}  Rg3 {[%clk 0:00:51]} 38. Rc7 {[%clk 0:00:10]}  Re6 {[%clk 0:00:25]} 39. Rf3 {[%clk 0:00:10]}  Rg2+ {[%clk 0:00:24]} 40. Kd3 {[%clk 0:00:10]}  Rf6 {[%clk 0:00:18]} 41. Rxf6 {[%clk 0:00:08]}  gxf6 {[%clk 0:00:19]} 42. Nd7 {[%clk 0:00:06]}  Ne4 {[%clk 0:00:19]} 43. Nxf6+ {[%clk 0:00:02]}  Nxf6 {[%clk 0:00:20]} 44. Rxb7 {[%clk 0:00:02]}  Ra2 {[%clk 0:00:17]} 45. Rxb6 {[%clk 0:00:02]}  Ne4 {[%clk 0:00:17]} 0-1


[Site "https://www.chess.com"]

[Event "Titled Tuesday Blitz April 25 Late 2023"]
[White "Melkumyan, Hrant"]
[Black "Petrovic, Aleksa"]
[WhiteFideId "13302485"]
[BlackFideId "967629"]
[WhiteElo "2604"]
[BlackElo "2309"]
[Result "1-0"]
[Round "03"]
[TimeControl "180+2"]
[Date "2023.04.25"]
[WhiteClock "0:01:21"]
[BlackClock "0:00:10"]

1. c4 {[%clk 0:02:47]}  Nf6 {[%clk 0:02:15]} 2. Nc3 {[%clk 0:02:46]}  e5 {[%clk 0:02:15]} 3. g3 {[%clk 0:02:46]}  Bb4 {[%clk 0:02:15]} 4. Bg2 {[%clk 0:02:46]}  O-O {[%clk 0:02:15]} 5. Nf3 {[%clk 0:02:39]}  Bxc3 {[%clk 0:02:08]} 6. dxc3 {[%clk 0:02:39]}  d6 {[%clk 0:02:06]} 7. Nd2 {[%clk 0:02:38]}  Nc6 {[%clk 0:02:01]} 8. e4 {[%clk 0:02:36]}  Be6 {[%clk 0:01:53]} 9. Qe2 {[%clk 0:02:36]}  Nd7 {[%clk 0:01:52]} 10. Nf1 {[%clk 0:02:35]}  f5 {[%clk 0:01:52]} 11. exf5 {[%clk 0:02:36]}  Rxf5 {[%clk 0:01:39]} 12. Ne3 {[%clk 0:02:36]}  Rf7 {[%clk 0:01:37]} 13. O-O {[%clk 0:02:36]}  a5 {[%clk 0:01:28]} 14. Nd5 {[%clk 0:02:35]}  Nc5 {[%clk 0:01:12]} 15. Be3 {[%clk 0:02:32]}  Qf8 {[%clk 0:01:06]} 16. Bxc5 {[%clk 0:02:25]}  dxc5 {[%clk 0:01:07]} 17. Rae1 {[%clk 0:02:25]}  Re8 {[%clk 0:01:04]} 18. Qe3 {[%clk 0:02:14]}  Qd6 {[%clk 0:00:56]} 19. Rd1 {[%clk 0:02:12]}  Qf8 {[%clk 0:00:56]} 20. Rfe1 {[%clk 0:02:12]}  Bg4 {[%clk 0:00:52]} 21. Rd2 {[%clk 0:02:10]}  e4 {[%clk 0:00:42]} 22. h3 {[%clk 0:01:59]}  Bf3 {[%clk 0:00:37]} 23. Nf4 {[%clk 0:01:52]}  Ne5 {[%clk 0:00:34]} 24. Rd5 {[%clk 0:01:45]}  Nxc4 {[%clk 0:00:19]} 25. Qxc5 {[%clk 0:01:42]}  Nxb2 {[%clk 0:00:13]} 26. Qd4 {[%clk 0:01:21]}  Bxg2 {[%clk 0:00:12]} 27. Kxg2 {[%clk 0:01:20]}  Nd3 {[%clk 0:00:10]} 28. Nxd3 {[%clk 0:01:20]}  exd3 {[%clk 0:00:11]} 29. Rxe8 {[%clk 0:01:20]}  Qxe8 {[%clk 0:00:10]} 30. Rd8 {[%clk 0:01:21]} 1-0


[Site "https://www.chess.com"]

[Event "Titled Tuesday Blitz April 25 Late 2023"]
[White "Babazada, Khazar"]
[Black "Rodriguez Garcia, Yuliesky"]
[WhiteFideId "13413554"]
[BlackFideId "3516660"]
[WhiteElo "2351"]
[BlackElo "2157"]
[Result "1-0"]
[Round "03"]
[TimeControl "180+2"]
[Date "2023.04.25"]
[WhiteClock "0:00:56"]
[BlackClock "0:00:04"]

1. d4 {[%clk 0:02:53]}  d5 {[%clk 0:02:56]} 2. c4 {[%clk 0:02:54]}  e5 {[%clk 0:02:56]} 3. Nf3 {[%clk 0:02:50]}  e4 {[%clk 0:02:53]} 4. Nfd2 {[%clk 0:02:50]}  c6 {[%clk 0:02:53]} 5. Nc3 {[%clk 0:02:49]}  Nf6 {[%clk 0:02:39]} 6. e3 {[%clk 0:02:46]}  a6 {[%clk 0:02:38]} 7. Be2 {[%clk 0:02:43]}  Bd6 {[%clk 0:02:36]} 8. a3 {[%clk 0:02:40]}  b5 {[%clk 0:02:35]} 9. cxd5 {[%clk 0:02:34]}  cxd5 {[%clk 0:02:34]} 10. f3 {[%clk 0:02:35]}  exf3 {[%clk 0:02:24]} 11. Nxf3 {[%clk 0:02:34]}  O-O {[%clk 0:02:23]} 12. O-O {[%clk 0:02:33]}  h6 {[%clk 0:02:16]} 13. Bd3 {[%clk 0:02:30]}  Bb7 {[%clk 0:02:16]} 14. Bd2 {[%clk 0:02:12]}  Nbd7 {[%clk 0:02:14]} 15. Nh4 {[%clk 0:02:08]}  Re8 {[%clk 0:02:05]} 16. Nf5 {[%clk 0:02:08]}  Bf8 {[%clk 0:02:05]} 17. Qf3 {[%clk 0:02:06]}  g6 {[%clk 0:02:02]} 18. Ng3 {[%clk 0:02:06]}  Bg7 {[%clk 0:01:58]} 19. Rf2 {[%clk 0:02:05]}  Rf8 {[%clk 0:01:52]} 20. Raf1 {[%clk 0:02:04]}  Qe7 {[%clk 0:01:44]} 21. Nce2 {[%clk 0:01:43]}  Rac8 {[%clk 0:01:33]} 22. Bb4 {[%clk 0:01:19]}  Qd8 {[%clk 0:01:07]} 23. Bxf8 {[%clk 0:01:12]}  Qxf8 {[%clk 0:00:59]} 24. Nf4 {[%clk 0:01:13]}  Qe7 {[%clk 0:00:45]} 25. h4 {[%clk 0:01:01]}  h5 {[%clk 0:00:19]} 26. Ngxh5 {[%clk 0:01:00]}  Nxh5 {[%clk 0:00:16]} 27. Nxh5 {[%clk 0:01:01]}  Rf8 {[%clk 0:00:13]} 28. Nxg7 {[%clk 0:00:59]}  Kxg7 {[%clk 0:00:14]} 29. h5 {[%clk 0:01:00]}  Nf6 {[%clk 0:00:10]} 30. h6+ {[%clk 0:00:59]}  Kxh6 {[%clk 0:00:08]} 31. Qxf6 {[%clk 0:01:00]}  Qxe3 {[%clk 0:00:08]} 32. Bxg6 {[%clk 0:00:57]}  Qg5 {[%clk 0:00:03]} 33. Qxg5+ {[%clk 0:00:56]}  Kxg5 {[%clk 0:00:04]} 34. Rxf7 {[%clk 0:00:56]} 1-0


[Site "https://www.chess.com"]

[Event "Titled Tuesday Blitz April 25 Late 2023"]
[White "Karamsetty, Jeevan"]
[Black "Mekhitarian, Krikor Sevag"]
[WhiteFideId "2025337"]
[BlackFideId "2107660"]
[WhiteElo "2111"]
[BlackElo "2604"]
[Result "0-1"]
[Round "03"]
[TimeControl "180+2"]
[Date "2023.04.25"]
[WhiteClock "0:00:01"]
[BlackClock "0:00:11"]

1. e4 {[%clk 0:03:00]}  c5 {[%clk 0:02:59]} 2. Nc3 {[%clk 0:03:01]}  e6 {[%clk 0:02:56]} 3. g3 {[%clk 0:02:58]}  d5 {[%clk 0:02:55]} 4. exd5 {[%clk 0:02:58]}  exd5 {[%clk 0:02:56]} 5. d4 {[%clk 0:02:58]}  cxd4 {[%clk 0:02:56]} 6. Qxd4 {[%clk 0:02:59]}  Nf6 {[%clk 0:02:56]} 7. Bg5 {[%clk 0:02:58]}  Be7 {[%clk 0:02:57]} 8. O-O-O {[%clk 0:02:53]}  Nc6 {[%clk 0:02:57]} 9. Qa4 {[%clk 0:02:53]}  Be6 {[%clk 0:02:57]} 10. Bg2 {[%clk 0:02:51]}  O-O {[%clk 0:02:55]} 11. Nge2 {[%clk 0:02:49]}  Qb6 {[%clk 0:02:52]} 12. Rhf1 {[%clk 0:02:47]}  Rfd8 {[%clk 0:02:46]} 13. Be3 {[%clk 0:02:35]}  Qc7 {[%clk 0:02:39]} 14. Nb5 {[%clk 0:02:28]}  Qc8 {[%clk 0:02:33]} 15. Nbd4 {[%clk 0:02:24]}  Bd7 {[%clk 0:02:34]} 16. Nxc6 {[%clk 0:02:15]}  bxc6 {[%clk 0:02:28]} 17. Qa5 {[%clk 0:02:03]}  Qb7 {[%clk 0:02:21]} 18. Bc5 {[%clk 0:01:53]}  Bxc5 {[%clk 0:02:16]} 19. Qxc5 {[%clk 0:01:54]}  Rab8 {[%clk 0:02:16]} 20. b3 {[%clk 0:01:51]}  Bg4 {[%clk 0:02:16]} 21. f3 {[%clk 0:01:48]}  Nd7 {[%clk 0:02:08]} 22. Qd4 {[%clk 0:01:43]}  Be6 {[%clk 0:02:07]} 23. Nf4 {[%clk 0:01:40]}  c5 {[%clk 0:02:00]} 24. Qd2 {[%clk 0:01:34]}  Nb6 {[%clk 0:01:55]} 25. Nxe6 {[%clk 0:01:32]}  fxe6 {[%clk 0:01:56]} 26. Bh3 {[%clk 0:01:30]}  e5 {[%clk 0:01:46]} 27. Be6+ {[%clk 0:01:16]}  Kh8 {[%clk 0:01:46]} 28. Rfe1 {[%clk 0:01:13]}  Qa6 {[%clk 0:01:40]} 29. c3 {[%clk 0:00:51]}  Nc4 {[%clk 0:01:34]} 30. Qc2 {[%clk 0:00:23]}  Qxe6 {[%clk 0:00:39]} 31. bxc4 {[%clk 0:00:22]}  d4 {[%clk 0:00:39]} 32. cxd4 {[%clk 0:00:19]}  cxd4 {[%clk 0:00:39]} 33. f4 {[%clk 0:00:18]}  Qb6 {[%clk 0:00:33]} 34. Rxe5 {[%clk 0:00:17]}  d3 {[%clk 0:00:34]} 35. Rxd3 {[%clk 0:00:12]}  Qg1+ {[%clk 0:00:21]} 36. Kd2 {[%clk 0:00:11]}  Qxh2+ {[%clk 0:00:15]} 37. Re2 {[%clk 0:00:11]}  Qxg3 {[%clk 0:00:12]} 38. Rxd8+ {[%clk 0:00:09]}  Rxd8+ {[%clk 0:00:12]} 39. Kc1 {[%clk 0:00:08]}  Qxf4+ {[%clk 0:00:12]} 40. Kb2 {[%clk 0:00:06]}  Rb8+ {[%clk 0:00:12]} 41. Ka3 {[%clk 0:00:01]}  Qd6+ {[%clk 0:00:12]} 42. Ka4 {[%clk 0:00:01]}  Qa6# {[%clk 0:00:11]} 0-1


[Site "https://www.chess.com"]

[Event "Titled Tuesday Blitz April 25 Late 2023"]
[White "Rios Escobar, Adan"]
[Black "Baskakov, Egor"]
[WhiteFideId "3403645"]
[BlackFideId "24197866"]
[WhiteElo "2234"]
[BlackElo "2212"]
[Result "0-1"]
[Round "03"]
[TimeControl "180+2"]
[Date "2023.04.25"]
[WhiteClock "0:00:11"]
[BlackClock "0:00:52"]

1. d4 {[%clk 0:02:57]}  Nf6 {[%clk 0:02:59]} 2. g3 {[%clk 0:02:57]}  e6 {[%clk 0:03:00]} 3. c4 {[%clk 0:02:57]}  d5 {[%clk 0:03:00]} 4. Bg2 {[%clk 0:02:55]}  Be7 {[%clk 0:03:01]} 5. Nf3 {[%clk 0:02:54]}  O-O {[%clk 0:03:01]} 6. O-O {[%clk 0:02:55]}  Ne4 {[%clk 0:03:02]} 7. b3 {[%clk 0:02:49]}  f5 {[%clk 0:03:02]} 8. Ba3 {[%clk 0:02:49]}  c6 {[%clk 0:03:02]} 9. Bxe7 {[%clk 0:02:46]}  Qxe7 {[%clk 0:03:03]} 10. Qc2 {[%clk 0:02:46]}  Bd7 {[%clk 0:03:03]} 11. e3 {[%clk 0:02:47]}  Be8 {[%clk 0:03:03]} 12. Nc3 {[%clk 0:02:43]}  Nd7 {[%clk 0:03:03]} 13. Ne5 {[%clk 0:02:24]}  Nxe5 {[%clk 0:03:02]} 14. dxe5 {[%clk 0:02:24]}  Bh5 {[%clk 0:02:55]} 15. f3 {[%clk 0:02:19]}  Nxc3 {[%clk 0:02:54]} 16. Qxc3 {[%clk 0:02:20]}  g5 {[%clk 0:02:54]} 17. f4 {[%clk 0:02:12]}  Rac8 {[%clk 0:02:51]} 18. Rf2 {[%clk 0:01:54]}  Rfd8 {[%clk 0:02:48]} 19. c5 {[%clk 0:01:45]}  Rd7 {[%clk 0:02:33]} 20. Rd2 {[%clk 0:01:37]}  Kh8 {[%clk 0:02:30]} 21. b4 {[%clk 0:01:36]}  Rg8 {[%clk 0:02:28]} 22. a4 {[%clk 0:01:33]}  Be8 {[%clk 0:02:15]} 23. Bh3 {[%clk 0:01:15]}  h5 {[%clk 0:02:07]} 24. Qd4 {[%clk 0:01:09]}  Kh7 {[%clk 0:01:55]} 25. Rc1 {[%clk 0:00:53]}  Qf8 {[%clk 0:01:46]} 26. Bg2 {[%clk 0:00:30]}  Qh6 {[%clk 0:01:42]} 27. Kf2 {[%clk 0:00:29]}  Rdg7 {[%clk 0:01:39]} 28. Rc3 {[%clk 0:00:26]}  h4 {[%clk 0:01:36]} 29. Rb2 {[%clk 0:00:15]}  Bh5 {[%clk 0:01:25]} 30. b5 {[%clk 0:00:15]}  Be8 {[%clk 0:01:21]} 31. bxc6 {[%clk 0:00:09]}  Bxc6 {[%clk 0:01:22]} 32. a5 {[%clk 0:00:10]}  a6 {[%clk 0:01:21]} 33. Rbb3 {[%clk 0:00:09]}  Bb5 {[%clk 0:01:20]} 34. Rxb5 {[%clk 0:00:08]}  axb5 {[%clk 0:01:21]} 35. c6 {[%clk 0:00:08]}  bxc6 {[%clk 0:01:20]} 36. Rxc6 {[%clk 0:00:09]}  hxg3+ {[%clk 0:01:17]} 37. hxg3 {[%clk 0:00:09]}  gxf4 {[%clk 0:01:17]} 38. exf4 {[%clk 0:00:08]}  Rxg3 {[%clk 0:01:17]} 39. Rc7+ {[%clk 0:00:08]}  Kh8 {[%clk 0:01:17]} 40. Bf1 {[%clk 0:00:03]}  Rg1 {[%clk 0:01:03]} 41. Ke1 {[%clk 0:00:02]}  Rxf1+ {[%clk 0:00:57]} 42. Kxf1 {[%clk 0:00:01]}  Qh1+ {[%clk 0:00:58]} 43. Ke2 {[%clk 0:00:02]}  Rg2+ {[%clk 0:00:58]} 44. Kd3 {[%clk 0:00:02]}  Qd1+ {[%clk 0:00:57]} 45. Kc3 {[%clk 0:00:01]}  Qa1+ {[%clk 0:00:57]} 46. Kd3 {[%clk 0:00:01]}  Rd2+ {[%clk 0:00:56]} 47. Kxd2 {[%clk 0:00:01]}  Qxd4+ {[%clk 0:00:57]} 48. Kc2 {[%clk 0:00:02]}  Qa4+ {[%clk 0:00:56]} 49. Kd3 {[%clk 0:00:01]}  Qxa5 {[%clk 0:00:56]} 50. Re7 {[%clk 0:00:01]}  Qa3+ {[%clk 0:00:56]} 51. Kd4 {[%clk 0:00:01]}  Qxe7 {[%clk 0:00:57]} 52. Kd3 {[%clk 0:00:01]}  Qb4 {[%clk 0:00:57]} 53. Ke3 {[%clk 0:00:01]}  Qe4+ {[%clk 0:00:57]} 54. Kd2 {[%clk 0:00:01]}  Qxf4+ {[%clk 0:00:58]} 55. Kc3 {[%clk 0:00:02]}  Qxe5+ {[%clk 0:00:59]} 56. Kb4 {[%clk 0:00:03]}  f4 {[%clk 0:01:00]} 57. Kc5 {[%clk 0:00:03]}  b4 {[%clk 0:01:00]} 58. Kc6 {[%clk 0:00:04]}  b3 {[%clk 0:01:00]} 59. Kc5 {[%clk 0:00:04]}  d4+ {[%clk 0:01:00]} 60. Kc4 {[%clk 0:00:04]}  Qd5+ {[%clk 0:01:00]} 61. Kd3 {[%clk 0:00:04]}  e5 {[%clk 0:00:59]} 62. Kd2 {[%clk 0:00:04]}  Qc4 {[%clk 0:00:58]} 63. Kd1 {[%clk 0:00:04]}  d3 {[%clk 0:00:57]} 64. Ke1 {[%clk 0:00:05]}  Qc2 {[%clk 0:00:56]} 65. Kf1 {[%clk 0:00:05]}  e4 {[%clk 0:00:57]} 66. Kg1 {[%clk 0:00:06]}  f3 {[%clk 0:00:57]} 67. Kf1 {[%clk 0:00:06]}  b2 {[%clk 0:00:55]} 68. Ke1 {[%clk 0:00:07]}  Kg7 {[%clk 0:00:51]} 69. Kf1 {[%clk 0:00:08]}  Kf6 {[%clk 0:00:51]} 70. Ke1 {[%clk 0:00:09]}  Kg5 {[%clk 0:00:52]} 71. Kf1 {[%clk 0:00:10]}  Kf4 {[%clk 0:00:52]} 72. Ke1 {[%clk 0:00:11]} 0-1


[Site "https://www.chess.com"]

[Event "Titled Tuesday Blitz April 25 Late 2023"]
[White "Kushko, Dmitriy"]
[Black "Kubatko, Ivan"]
[WhiteFideId "14162261"]
[BlackFideId "24111473"]
[WhiteElo "2230"]
[BlackElo "2285"]
[Result "1-0"]
[Round "03"]
[TimeControl "180+2"]
[Date "2023.04.25"]
[WhiteClock "0:00:11"]
[BlackClock "0:00:02"]

1. g3 {[%clk 0:03:00]}  d5 {[%clk 0:02:59]} 2. Bg2 {[%clk 0:03:00]}  Nf6 {[%clk 0:02:59]} 3. f4 {[%clk 0:03:00]}  c5 {[%clk 0:02:59]} 4. Nf3 {[%clk 0:03:01]}  Nc6 {[%clk 0:03:00]} 5. O-O {[%clk 0:03:01]}  h5 {[%clk 0:02:31]} 6. d3 {[%clk 0:02:55]}  h4 {[%clk 0:02:30]} 7. Nxh4 {[%clk 0:02:55]}  Bg4 {[%clk 0:02:25]} 8. Nc3 {[%clk 0:02:50]}  e6 {[%clk 0:02:25]} 9. h3 {[%clk 0:02:27]}  Bh5 {[%clk 0:02:24]} 10. Nf3 {[%clk 0:02:27]}  Bxf3 {[%clk 0:02:22]} 11. Rxf3 {[%clk 0:02:27]}  Nd4 {[%clk 0:02:20]} 12. Rf1 {[%clk 0:02:26]}  Qb6 {[%clk 0:02:11]} 13. g4 {[%clk 0:02:17]}  O-O-O {[%clk 0:02:09]} 14. e3 {[%clk 0:02:18]}  Nc6 {[%clk 0:02:09]} 15. Rb1 {[%clk 0:02:00]}  d4 {[%clk 0:02:06]} 16. Ne2 {[%clk 0:01:49]}  Nd5 {[%clk 0:01:55]} 17. Bxd5 {[%clk 0:01:40]}  exd5 {[%clk 0:01:55]} 18. Kg2 {[%clk 0:01:38]}  Bd6 {[%clk 0:01:44]} 19. e4 {[%clk 0:01:37]}  Rhe8 {[%clk 0:01:38]} 20. Ng3 {[%clk 0:01:35]}  c4 {[%clk 0:01:33]} 21. Bd2 {[%clk 0:01:26]}  Bc5 {[%clk 0:01:25]} 22. exd5 {[%clk 0:01:16]}  Rxd5 {[%clk 0:01:15]} 23. dxc4 {[%clk 0:01:16]}  Rdd8 {[%clk 0:01:14]} 24. Qf3 {[%clk 0:01:12]}  d3 {[%clk 0:01:10]} 25. c3 {[%clk 0:01:13]}  Qa6 {[%clk 0:01:06]} 26. Ne4 {[%clk 0:00:52]}  Qxc4 {[%clk 0:00:43]} 27. Rfe1 {[%clk 0:00:44]}  Bf8 {[%clk 0:00:28]} 28. b3 {[%clk 0:00:44]}  Qd5 {[%clk 0:00:27]} 29. Ng3 {[%clk 0:00:26]}  Qd7 {[%clk 0:00:26]} 30. Rbd1 {[%clk 0:00:24]}  g6 {[%clk 0:00:26]} 31. Rxe8 {[%clk 0:00:21]}  Rxe8 {[%clk 0:00:26]} 32. Be1 {[%clk 0:00:21]}  Rd8 {[%clk 0:00:26]} 33. Bf2 {[%clk 0:00:20]}  Bg7 {[%clk 0:00:26]} 34. c4 {[%clk 0:00:19]}  Nb4 {[%clk 0:00:21]} 35. Ne4 {[%clk 0:00:16]}  f5 {[%clk 0:00:08]} 36. Nc5 {[%clk 0:00:15]}  Qc6 {[%clk 0:00:08]} 37. Qxc6+ {[%clk 0:00:15]}  bxc6 {[%clk 0:00:08]} 38. a3 {[%clk 0:00:13]}  Nc2 {[%clk 0:00:08]} 39. Rxd3 {[%clk 0:00:14]}  Rxd3 {[%clk 0:00:06]} 40. Nxd3 {[%clk 0:00:15]}  Nxa3 {[%clk 0:00:06]} 41. Kf3 {[%clk 0:00:14]}  a6 {[%clk 0:00:06]} 42. Ne5 {[%clk 0:00:12]}  Bxe5 {[%clk 0:00:05]} 43. fxe5 {[%clk 0:00:13]}  Kd7 {[%clk 0:00:04]} 44. gxf5 {[%clk 0:00:12]}  gxf5 {[%clk 0:00:05]} 45. h4 {[%clk 0:00:13]}  Ke6 {[%clk 0:00:05]} 46. Bd4 {[%clk 0:00:10]}  Nc2 {[%clk 0:00:05]} 47. Bc3 {[%clk 0:00:11]}  c5 {[%clk 0:00:01]} 48. h5 {[%clk 0:00:11]}  Kf7 {[%clk 0:00:01]} 49. h6 {[%clk 0:00:10]}  Kg8 {[%clk 0:00:01]} 50. e6 {[%clk 0:00:11]}  Nd4+ {[%clk 0:00:01]} 51. Bxd4 {[%clk 0:00:10]}  cxd4 {[%clk 0:00:02]} 52. e7 {[%clk 0:00:11]} 1-0


[Site "https://www.chess.com"]

[Event "Titled Tuesday Blitz April 25 Late 2023"]
[White "Meunier-Pion, Jean"]
[Black "Bitoon, Richard"]
[WhiteFideId "20685327"]
[BlackFideId "5201110"]
[WhiteElo "2124"]
[BlackElo "2374"]
[Result "1/2-1/2"]
[Round "03"]
[TimeControl "180+2"]
[Date "2023.04.25"]
[WhiteClock "0:00:26"]
[BlackClock "0:00:03"]

1. e4 {[%clk 0:03:00]}  e5 {[%clk 0:03:00]} 2. Nf3 {[%clk 0:03:00]}  Nc6 {[%clk 0:03:00]} 3. Bb5 {[%clk 0:03:00]}  a6 {[%clk 0:03:00]} 4. Ba4 {[%clk 0:03:00]}  Nf6 {[%clk 0:03:00]} 5. d3 {[%clk 0:02:59]}  b5 {[%clk 0:03:00]} 6. Bb3 {[%clk 0:03:00]}  Bb7 {[%clk 0:03:01]} 7. O-O {[%clk 0:02:58]}  Bc5 {[%clk 0:03:01]} 8. a4 {[%clk 0:02:55]}  O-O {[%clk 0:03:00]} 9. Nc3 {[%clk 0:02:53]}  Na5 {[%clk 0:03:00]} 10. axb5 {[%clk 0:02:51]}  Nxb3 {[%clk 0:03:00]} 11. cxb3 {[%clk 0:02:52]}  axb5 {[%clk 0:03:01]} 12. Rxa8 {[%clk 0:02:52]}  Bxa8 {[%clk 0:03:02]} 13. Nxe5 {[%clk 0:02:39]}  d5 {[%clk 0:03:02]} 14. d4 {[%clk 0:02:35]}  Be7 {[%clk 0:02:48]} 15. exd5 {[%clk 0:02:28]}  b4 {[%clk 0:02:45]} 16. Ne2 {[%clk 0:02:16]}  Qxd5 {[%clk 0:02:41]} 17. Nf4 {[%clk 0:02:12]}  Qb7 {[%clk 0:02:38]} 18. Be3 {[%clk 0:02:03]}  g5 {[%clk 0:02:35]} 19. f3 {[%clk 0:01:14]}  gxf4 {[%clk 0:02:34]} 20. Bxf4 {[%clk 0:01:15]}  Rd8 {[%clk 0:02:12]} 21. Qe1 {[%clk 0:01:14]}  Nh5 {[%clk 0:01:53]} 22. Ng4 {[%clk 0:01:05]}  Bf8 {[%clk 0:01:45]} 23. Qe5 {[%clk 0:00:49]}  Rd5 {[%clk 0:01:24]} 24. Qe8 {[%clk 0:00:40]}  Nxf4 {[%clk 0:01:16]} 25. Nh6+ {[%clk 0:00:40]}  Kg7 {[%clk 0:01:12]} 26. Qxf7+ {[%clk 0:00:40]}  Kxh6 {[%clk 0:01:12]} 27. Qxf8+ {[%clk 0:00:27]}  Kg6 {[%clk 0:00:32]} 28. Qg8+ {[%clk 0:00:27]}  Kf6 {[%clk 0:00:24]} 29. Qf8+ {[%clk 0:00:26]}  Kg6 {[%clk 0:00:17]} 30. Qg8+ {[%clk 0:00:26]}  Kf6 {[%clk 0:00:11]} 31. Qf8+ {[%clk 0:00:26]}  Kg6 {[%clk 0:00:03]} 1/2-1/2


[Site "https://www.chess.com"]

[Event "Titled Tuesday Blitz April 25 Late 2023"]
[White "Sieciechowicz, Marcin"]
[Black "Baches Garcia, Guillermo"]
[WhiteFideId "1130170"]
[BlackFideId "2209764"]
[WhiteElo "2302"]
[BlackElo "2334"]
[Result "1-0"]
[Round "03"]
[TimeControl "180+2"]
[Date "2023.04.25"]
[WhiteClock "0:01:55"]
[BlackClock "0:01:19"]

1. d4 {[%clk 0:03:00]}  f5 {[%clk 0:02:59]} 2. Bf4 {[%clk 0:02:59]}  Nf6 {[%clk 0:02:52]} 3. e3 {[%clk 0:02:59]}  g6 {[%clk 0:02:51]} 4. Nf3 {[%clk 0:02:58]}  d6 {[%clk 0:02:51]} 5. h3 {[%clk 0:02:58]}  Bg7 {[%clk 0:02:50]} 6. Bc4 {[%clk 0:02:58]}  e6 {[%clk 0:02:48]} 7. O-O {[%clk 0:02:58]}  O-O {[%clk 0:02:46]} 8. c3 {[%clk 0:02:58]}  h6 {[%clk 0:02:44]} 9. Nbd2 {[%clk 0:02:58]}  g5 {[%clk 0:02:44]} 10. Bh2 {[%clk 0:02:58]}  Nc6 {[%clk 0:02:31]} 11. Re1 {[%clk 0:02:57]}  g4 {[%clk 0:02:26]} 12. hxg4 {[%clk 0:02:52]}  fxg4 {[%clk 0:02:17]} 13. Nh4 {[%clk 0:02:53]}  Qe8 {[%clk 0:02:10]} 14. Nf5 {[%clk 0:02:49]}  d5 {[%clk 0:02:00]} 15. Nxg7 {[%clk 0:02:49]}  Kxg7 {[%clk 0:02:01]} 16. Bd3 {[%clk 0:02:49]}  e5 {[%clk 0:01:57]} 17. e4 {[%clk 0:02:46]}  Qh5 {[%clk 0:01:53]} 18. exd5 {[%clk 0:02:37]}  Nxd5 {[%clk 0:01:53]} 19. Bxe5+ {[%clk 0:02:33]}  Nf6 {[%clk 0:01:50]} 20. Bxc7 {[%clk 0:02:21]}  Bf5 {[%clk 0:01:21]} 21. Ne4 {[%clk 0:02:06]}  Nxe4 {[%clk 0:01:21]} 22. Bxe4 {[%clk 0:02:07]}  Rae8 {[%clk 0:01:19]} 23. Bxf5 {[%clk 0:01:57]}  Qxf5 {[%clk 0:01:19]} 24. Bg3 {[%clk 0:01:55]} 1-0


[Site "https://www.chess.com"]